Cogmind - Beta 10.2 @@@ ROGUE MODE // 2020.11.02 @ 01:14:01 // Winter2019/RPGLIKE Player: FontPeg Result: Destroyed by L-31 Rogue with Katana Performance ------------- Evolutions (2) 1000 Regions Visited (3) 600 Robots Destroyed (10) 50 Value Destroyed (340) 340 Prototype IDs (2) 40 Alien Tech Used (0) 0 Bonus (0) 0 TOTAL SCORE: 2030 Bonus ------- None Cogmind --------- Core Integrity 0/700 Matter 100/300 Energy 160/160 System Corruption 1% Temperature Cool (47) Movement Rolling (90) Location -8/Materials Parts ------- > --- POWER (1) -------- Light Nuclear Core > --- PROPULSION (3) --- Wheel Compact Wheel Armored Wheel > --- UTILITY (1) ------ Signal Interpreter > --- WEAPON (3) ------- Minigun Minigun Minigun > --- INVENTORY (3) ---- Carbon-fiber Leg System Shield Grenade Launcher Peak State ------------ > --- POWER ------------ Light Nuclear Core > --- PROPULSION ------- Wheel Compact Wheel Armored Wheel > --- UTILITY ---------- Signal Interpreter > --- WEAPON ----------- Minigun Minigun Minigun > --- INVENTORY -------- Carbon-fiber Leg System Shield Grenade Launcher [Rating: 17] Favorites ----------- Power Light Ion Engine Engine Light Ion Engine Power Core Light Nuclear Core Propulsion Compact Wheel Treads Light Treads Wheel Compact Wheel Utility Signal Interpreter Processor Signal Interpreter Weapon Light Assault Rifle Energy Gun EM Pulse Gun Ballistic Gun Light Assault Rifle Launcher Grenade Launcher Build | -11 -10 -9 -8 ------- Run | Scr Mat Mat Mat Slots Evolved 4 | 4 . . . Power . | . . . . Propulsion 2 | 2 . . . Utility . | . . . . Weapon 2 | 2 . . . Parts Attached 16 | 7 4 1 4 Power 2 | 1 . . 1 Engine 1 | 1 . . . Core 1 | . . . 1 Reactor . | . . . . Propulsion 5 | 3 1 1 . Treads 1 | 1 . . . Leg . | . . . . Wheel 4 | 2 1 1 . Hover . | . . . . Flight . | . . . . Utility 1 | . 1 . . Device . | . . . . Storage . | . . . . Processor 1 | . 1 . . Hackware . | . . . . Protection . | . . . . Artifact . | . . . . Weapon 8 | 3 2 . 3 Energy Gun 2 | 2 . . . Energy Cannon . | . . . . Ballistic Gun 5 | 1 1 . 3 Ballistic Cannon . | . . . . Launcher 1 | . 1 . . Special Weapon . | . . . . Impact Weapon . | . . . . Slashing Weapon . | . . . . Piercing Weapon . | . . . . Special Melee Weapon . | . . . . Unidentified Prototypes . | . . . . Parts Lost . | . . . . Power . | . . . . Propulsion . | . . . . Utility . | . . . . Weapon . | . . . . Highest Loss Streak . | . . . . Average Slot Usage (%) 99 | . 99 100 100 Engine 10 | . 12 12 5 Core 1 | . . . 6 Treads 4 | . 10 . . Wheel 32 | . 26 37 37 Processor 11 | . 11 12 12 Energy Gun 4 | . 9 . . Ballistic Gun 25 | . 23 25 28 Launcher 7 | . 3 12 8 Naked Turns . | . . . . Heaviest Build 14 | 8 8 8 14 Greatest Support 42 | 26 42 42 38 Greatest Overweight (x) . | . . . . Average Overweight (x) . | . . . . Largest Inventory Capacity 3 | . . 3 3 Average Capacity 1 | . . 2 3 Most Carried 3 | . . . 3 Average Carried . | . . . 1 Final Capacity 3 | . . 3 3 Final Carried 3 | . . . 3 Class Distribution -------------------- 55% | Gunner 44% | Mutant Dominant Class ---------------- Gunner | -10/Materials Mutant | -9/Materials Gunner | -8/Materials Resources | -11 -10 -9 -8 ----------- Run | Scr Mat Mat Mat Matter Collected 394 | 270 86 . 38 Remotely . | . . . . Salvage Created 251 | . 90 . 161 Parts 16 | . 14 . 2 Haulers Intercepted 1 | . . . 1 Recyclers Shooed 1 | . 1 . . Parts Field Recycled . | . . . . Retrieved Matter . | . . . . Parts Self-Destructed . | . . . . Prevented . | . . . . Kills | -11 -10 -9 -8 ------- Run | Scr Mat Mat Mat Combat Hostiles Destroyed 8 | . 4 . 4 Guns 5 | . 4 . 1 AOE 3 | . . . 3 Classes Destroyed 6 | . 2 . 4 Hauler 1 | . . . 1 Recycler 1 | . 1 . . Grunt 5 | . 4 . 1 Brawler 1 | . . . 1 Sentry 1 | . . . 1 Hunter 1 | . . . 1 Best Kill Streak 4 | . 3 . 4 Combat Bots Only 3 | . 3 . 3 Max Kills in Single Turn 2 | . 1 . 2 Gunslinging . | . . . . Exploded 1 | . . . 1 Melee . | . . . . Uniques/NPCs Destroyed . | . . . . Combat | -11 -10 -9 -8 -------- Run | Scr Mat Mat Mat Damage Taken 1350 | . 475 191 684 Core 1099 | . 377 152 570 Absorbed by Shields . | . . . . Redirected to Core 831 | . 323 131 377 Core Remaining (%) 92 | 100 100 78 . Volleys Fired 42 | . 24 2 16 Largest 3 | . 3 2 3 Hottest 80 | . 80 40 75 Shots Fired 118 | . 67 4 47 Gun 109 | . 67 4 38 Cannon . | . . . . Launcher 9 | . . . 9 Special . | . . . . Kinetic 90 | . 48 4 38 Thermal . | . . . . Explosive 9 | . . . 9 Electromagnetic 19 | . 19 . . Robot Hit Streak 8 | . 8 3 7 Robot Miss Streak 6 | . 6 . 3 Penetration Max . | . . . . Secondary Targets 1 | . 1 . . Max Gunslinging Chain 1 | . 1 . . Shots Hit Robots 65 | . 37 2 26 Core Hits 32 | . 13 1 18 Critical Hits 2 | . 2 . . Critical Kills . | . . . . Critical Parts Destroyed 2 | . 2 . . Melee Attacks . | . . . . Impact . | . . . . Slashing . | . . . . Piercing . | . . . . Sneak Attacks . | . . . . Combat Hostiles . | . . . . Follow-up Attacks . | . . . . Damage Inflicted 1218 | . 457 14 747 Guns 621 | . 365 14 242 Cannons . | . . . . Explosions 597 | . 92 . 505 Melee . | . . . . Ramming . | . . . . Kinetic 435 | . 179 14 242 Thermal 92 | . 92 . . Explosive 505 | . . . 505 Electromagnetic 186 | . 186 . . Impact . | . . . . Slashing . | . . . . Piercing . | . . . . Highest Corruption 1 | . . . 1 Average Corruption 1 | . . . 1 Corruption Purged . | . . . . Effects 1 | . . . 1 Targeting Errors 1 | . . . 1 Overload Shots . | . . . . Overflow Damage 16 | . . . 16 Projectiles . | . . . . Explosions 16 | . . . 16 Melee . | . . . . Knockbacks . | . . . . Impact . | . . . . Kinetic . | . . . . Secondary . | . . . . Self-Inflicted Damage 51 | . . . 51 Shots 5 | . . . 5 Rammed . | . . . . Targets Rammed . | . . . . Kicked . | . . . . Crushed . | . . . . Highest Temperature 290 | . 182 9 290 Average Temperature 93 | . 86 7 108 Received Heat Transfer 576 | . 294 111 171 Effects 2 | . . . 2 Energy Bleed 2 | . . . 2 Siege Activations . | . . . . Robots Corrupted . | . . . . Combat Hostiles . | . . . . Parts Fried . | . . . . Impact Corruptions . | . . . . Robots Melted . | . . . . Combat Hostiles . | . . . . Parts Melted . | . . . . Heat Transferred 150 | . 150 . . Parts Sabotaged . | . . . . Parts Stolen . | . . . . Parts Stripped . | . . . . Power Chain Reactions 1 | . 1 . . Missiles Intercepted . | . . . . Alert | -11 -10 -9 -8 ------- Run | Scr Mat Mat Mat Peak Influence 293 | . 212 194 293 Initial 89 | . . 89 81 Average 118 | . 90 126 191 Maximum Alert Level 1 | . 1 . 1 Low Security (%) 87 | 100 96 100 53 Level 1 12 | . 3 . 46 Level 2 . | . . . . Level 3 . | . . . . Level 4 . | . . . . Level 5 . | . . . . High Security . | . . . . Max Security . | . . . . Squads Dispatched 8 | . 2 4 2 Investigation 2 | . . 1 1 Extermination . | . . . . Reinforcement 6 | . 2 3 1 Assault . | . . . . Garrison . | . . . . Intercept . | . . . . Construction Impeded 1 | . . . 1 Haulers Reinforced . | . . . . Stealth | -11 -10 -9 -8 --------- Run | Scr Mat Mat Mat Distress Signals 2 | . 1 1 . Communications Jammed . | . . . . Distress Signals . | . . . . Times Spotted 38 | . 12 15 11 Peak Tracking Total 10 | . 5 10 5 Tactical Retreats 8 | . 3 3 2 Traps | -11 -10 -9 -8 ------- Run | Scr Mat Mat Mat Traps Triggered 1 | . . 1 . Indirectly . | . . . . Trap Hack Attempts . | . . . . Triggered . | . . . . Disarmed . | . . . . Reprogrammed . | . . . . Reused . | . . . . Traps Extracted . | . . . . Installed . | . . . . Triggered . | . . . . Machines | -11 -10 -9 -8 ---------- Run | Scr Mat Mat Mat Machines Disabled . | . . . . Max in Single Turn . | . . . . Machines Sabotaged . | . . . . Garrisons Compromised . | . . . . Overloaded Fab Kills . | . . . . Fab Network Shutdowns . | . . . . Hacking | -11 -10 -9 -8 --------- Run | Scr Mat Mat Mat Machines Accessed 2 | . 1 . 1 Terminals 1 | . 1 . . Fabricators . | . . . . Repair Stations . | . . . . Recycling Units . | . . . . Scanalyzers 1 | . . . 1 Garrison Access . | . . . . Total Hacks 5 | . 3 . 2 Successful 3 | . 3 . . Failed 2 | . . . 2 Catastrophic . | . . . . Database Lockouts . | . . . . Manual 3 | . 1 . 2 Terminals 3 | . 3 . . Fabricators . | . . . . Repair Stations . | . . . . Recycling Units . | . . . . Scanalyzers 2 | . . . 2 Garrison Access . | . . . . Terminal Hacks 2 | . 2 . . Prototype ID Bank 1 | . 1 . . Branch Access Points 1 | . 1 . . Fabricator Hacks . | . . . . Repair Station Hacks . | . . . . Recycling Unit Hacks . | . . . . Scanalyzer . | . . . . Garrison Access Hacks . | . . . . Unauthorized Hacks 1 | . 1 . . Terminals 1 | . 1 . . Botnet 1 | . 1 . . Fabricators . | . . . . Repair Stations . | . . . . Recycling Units . | . . . . Scanalyzers . | . . . . Garrison Access . | . . . . Data Cores Recovered . | . . . . Used . | . . . . Hacking Detections 2 | . 1 . 1 Full Trace Events 1 | . . . 1 Feedback Events 1 | . . . 1 Corruption 1 | . . . 1 Feedback Blocked . | . . . . Robot Schematics Acquired . | . . . . Robots Built . | . . . . Matter . | . . . . Time . | . . . . Total Robot Build Rating . | . . . . Part Schematics Acquired . | . . . . Parts Built . | . . . . Matter . | . . . . Time . | . . . . Total Part Build Rating . | . . . . Parts Repaired . | . . . . Time . | . . . . Parts Recycled . | . . . . Recycled Matter . | . . . . Retrieved Matter . | . . . . Retrieved Components . | . . . . Parts Scanalyzed . | . . . . Part Schematics Acquired . | . . . . Parts Damaged . | . . . . Bothacking | -11 -10 -9 -8 ------------ Run | Scr Mat Mat Mat Used RIF Installer . | . . . . Robots Hacked . | . . . . Non-combat . | . . . . Combat . | . . . . Robot Hacks Applied . | . . . . Relay Couplers Released . | . . . . Robots Rewired . | . . . . Allies Hacked . | . . . . Hacks Repelled . | . . . . Allies | -11 -10 -9 -8 -------- Run | Scr Mat Mat Mat Total Allies . | . . . . Largest Group . | . . . . Highest-Rated Group . | . . . . Highest-Rated Ally . | . . . . Total Orders . | . . . . Ally Attacks . | . . . . Total Damage . | . . . . Kills . | . . . . Allies Corrupted . | . . . . Allies Melted . | . . . . Intel | -11 -10 -9 -8 ------- Run | Scr Mat Mat Mat Robot Analysis Total . | . . . . Derelict Logs Recovered . | . . . . Drone Launches . | . . . . Drone Recoveries . | . . . . Exploration | -11 -10 -9 -8 ------------- Run | Scr Mat Mat Mat Turns Passed 625 | 41 262 173 149 Spaces Moved 487 | 35 175 185 92 Core 2 | 2 . . . Treads . | . . . . Legs . | . . . . Wheels 485 | 33 175 185 92 Hover . | . . . . Flight . | . . . . Fastest Speed 50 | 50 90 90 90 Average Speed 90 | 88 90 90 90 Slowest Speed 100 | 100 93 93 90 Overloaded Moves . | . . . . Propulsion Burnouts . | . . . . Robots Hopped . | . . . . Cave-ins Triggered . | . . . . Exploration Rate (%) 15 | 3 24 23 13 Regions Visited 3 Branch Regions . Pre-discovered Areas . | . . . . Known Exits Taken 2 | . 1 1 . Unknown Exits Taken 1 | 1 . . . Scrap Searched . | . . . . Spaces Dug . | . . . . Terrain Destroyed 35 | . 3 . 32 Melee . | . . . . Projectile . | . . . . AOE 35 | . 3 . 32 Terrain Rammed . | . . . . Walls Destroyed . | . . . . Machines Disabled . | . . . . Actions | -11 -10 -9 -8 --------- Run | Scr Mat Mat Mat Total 595 | 41 235 188 131 Wait 19 | . 7 . 12 Move 484 | 34 174 184 92 Hop . | . . . . Pick Up 4 | . . . 4 Fast Attach 11 | 7 4 . . Attach 1 | . . . 1 Detach . | . . . . Swap 4 | . . 1 3 Drop 7 | . 3 1 3 Fire 42 | . 24 2 16 Melee . | . . . . Ram . | . . . . Kick . | . . . . Crush . | . . . . Escape Stasis . | . . . . Rewire . | . . . . Trap . | . . . . Miscellaneous 23 | . 23 . . Route ------- -11/Scrapyard -10/Materials (discovered 3 exits: *Mat / Min x2) -9/Materials -8/Materials History --------- Turn | Location | Event 1 | -11/Scrapyard | Upgraded with Propulsion slot (x2) 1 | -11/Scrapyard | Upgraded with Weapon slot (x2) 9 | -11/Scrapyard | Discovered new exit (range 15) 42 | -11/Scrapyard | Entered Materials 288 | -10/Materials | Discovered new exit (range 15) 292 | -10/Materials | Identified exit to Mines 304 | -10/Materials | Identified exit to Materials 304 | -10/Materials | Entered another Materials area 306 | -9/Materials | Reached level 2 461 | -9/Materials | Discovered new exit (range 16) 476 | -9/Materials | Identified exit to Materials 477 | -9/Materials | Entered another Materials area 479 | -8/Materials | Reached level 3 561 | -8/Materials | Core integrity fell below 50% 572 | -8/Materials | Reached level 4 604 | -8/Materials | Core integrity fell below 20% 626 | -8/Materials | Destroyed by L-31 Rogue with Katana Last Messages --------------- 00607_ U-05 Engineer lays Concrete. 00607_ K-01 Serf collects debris. 00608_ U-05 Engineer lays Concrete. 00608_ U-05 Engineer builds a Wall. 00609_ U-05 Engineer lays Concrete. 00609_ Penetrated by Slug. 00609_ U-05 Engineer lays Concrete. 00610_ ALERT: Construction progress impeded, dispatching reinforcements to local area. 00611_ K-01 Serf collects debris. 00611_ U-05 Engineer builds a Wall. 00612_ K-01 Serf collects debris. 00612_ K-01 Serf cleans the Terminal. 00613_ U-05 Engineer builds a Wall. 00617_ K-01 Serf collects debris. 00620_ Slug penetrates Wall. 00624_ C-30 ARC bursts open, deploying its payload. 00624_ L-31 Rogue unfolds itself. 00624_ G-47 Trooper unfolds itself. 00626_ Slug penetrates Wall. Map ----- +----------------------------------------------------+ | ?????????????????????????????????????????????????? | | ?????????????????????????????????????????????????? | | ?????????????????????????????????????????????????? | | ?????????????????????????????????????????????????? | | ?????????????????????????????????????????????????? | | ?????????????????????????????????????????????????? | | ?????????????????????????????????????????????????? | | ?????????????????????????????????????????????????? | | ?????????????????????????????????????????????????? | | ?????????????????????????????????????????????????? | | ?????????????????????????###+###?????????????????? | | ??????????????????????#### #?????????????????? | | ?????????????????????? #?????????????????? | | ??????????????????????? #?????????????????? | | ???????????????????????? #?????????????????? | | ???????????????????#####?# #?????????????????? | | ???????????????????"T"""### #########?????????? | | ???????????????????? # = #?????????? | | ????????????????????""" """ #?????????? | | ????????????????????""" """ #?????????? | | ????????????????""" """ """ #?????????? | | ?????????????????? # #?????????? | | ????????????????????????### [ #?????????? | | ???????????????????###### # # [! #?????????? | | ???????????????????# """ # #?????????? | | ???????????????????# "T"@# # #?????????? | | ???????????????????# lg ##########?????????? | | ???????????????????# #g ##?????????????????? | | ???????????????????# # ############???????? | | ???????????????????#= *# ## #???????? | | ???????????????????######## ## """ """ #???????? | | ??????????????????????????# ## """ """ #???????? | | ?????????????????#######??# ## """ """ #???????? | | ?????????????????# """"#??# ## #???????? | | ?????????????????#""S""#??# ## ! #???????? | | ???????????????###"" ""#### ## #???????? | | ???????????????# ## ## #???????? | | ???????????????# # ## ###+########### | | ???????????????# # | | ???????????????# """"""" + % | | ???????????????# """"""" # | | ???????????????# """"""" # ## ################ | | ???????????????# """"""" ##########??????????????? | | ???????????????#???""""" #?#####?????????????????? | | ???????????????????#######???????????????????????? | | ?????????????????????????????????????????????????? | | ?????????????????????????????????????????????????? | | | | | | | +----------------------------------------------------+ Best States ------------- Heat Dissipation 25 Energy Generation 14 Energy Capacity 160 Matter Stores 300 Matter Capacity 300 Sight Range 16 Terrain Scan Density 10 Resistance: TH 5 Resistance: EX 5 Evasion (%) 42 Item Schematics ----------------- None Robot Schematics ------------------ None Fabricated ------------ Nothing Alien Tech Used ----------------- None Achievements -------------- None Challenges ------------ None RPGLIKE | -11 -10 -9 -8 --------- Run | Scr Mat Mat Mat Levels Raised 3 | . . 1 2 XP Earned 7795 | 3000 760 1800 2235 XP Spent 4460 | 2960 . 1500 . Upgrades 11 | 8 . 3 . Propulsion Slot 2 | 2 . . . Weapon Slot 2 | 2 . . . Core Integrity 2 | 2 . . . Inventory Capacity 3 | . . 3 . TH Resistance % 1 | 1 . . . EX Resistance % 1 | 1 . . . Protomatter Created 171 | . 171 . . Integrity Restored 475 | . 475 . . Core 377 | . 377 . . Parts 98 | . 98 . . Protomatter Decayed 12 | . 12 . . Game ------ Seed MiningSmallRecalibrator Manual? 0 Play Time 00:08:35 Cumulative 72.8 hours Start 2020.11.02 @ 01:07:20 End 2020.11.02 @ 01:14:01 Sessions 1 Manual Loads 0 Difficulty Rogue Special Mode Winter2019/RPGLIKE Game No. 111 Rogue 111 Adventurer 0 Explorer 0 Win Type - Total 1 Types 1/0/0/0/0/0/0/0/0 Lore% 35 Gallery% 46 Achievement% 39 Wizard Run 0 Options --------- ASCII 0 Keyboard 0 Movement Mouse Keybinds 0 Fullscreen 2 Font 18/X11 Map View 76x50 Tactical HUD 1 Map Filters NONE Filters NONE Steam 1 RUN: c5c4df4d-7256-40c8-a72d-728aaa509cb8